{"text_format":"3","workbook":"xlsx","n_sheets":7,"sheets":["Inselberg plant endemics","Mammals","Birds","Reptiles","Amphibians","Crabs","Butterflies"],"not_rendered":{"defined_names":2},"read":"whole","date_system":"1900"}

{"sheet":"Inselberg plant endemics","index":0,"n_rows":146,"n_cols":27,"rows_kept":146}
["Family","Taxon","End. rank","life form","IUCN status","Type only ","alt.","Habitat","Mangochi","Liwonde","Zomba-Malosa","Mulanje + Mchese","Thyolo Mt","Mts Soche, Ndirande, Chiradzulu","Chiperone","Mabu","Namuli","Pico Muli","Lico","Inago","Ribáuѐ & Mpaluwe","Nallume (Chinga)","Tumbine (Milange)","Mt Ile (Errego)","Mitucue","Morrumbala","OTHER"]
["Acanthaceae","Isoglossa perdita I.Darbysh.","sp","herb","CR B2ab(iii)","T",1300,"C/F",{"$nulls":3},1]
["Acanthaceae","Isoglossa eliasbandae Brummitt","sp","herb",null,"T",1525,"C/F",null,null,1]
["Acanthaceae","Isoglossa namuliensis I.Darbysh.& T.Harris","sp","herb","CR B1ab(iii)+2ab(iii)","T",1900,"C/F",{"$nulls":8},1]
["Acanthaceae","Sclerochiton hirsutus Vollesen","sp","shr","VU D2","","1150-1400","C/F",{"$nulls":7},1,1]
["Achariaceae","Rawsonia burtt-davyi (Edlin) F.White","sp","tree","CR B1ab(ii,iii,v)+2ab(ii,iii,v)",null,"1000-1950","C/F",{"$nulls":3},1]
["Anacardiaceae","Searsia monticola (Meikle) Moffett","sp","sshr",null,null,"1850-2350","O",{"$nulls":3},1]
["Apiaceae","Diplolophium buchananii (Oliv.) C.Norman subsp. buchananii","subsp","herb","LC",null,"900-2280","O",1,null,1,null,null,1,null,null,1,{"$nulls":3},1]
["Apiaceae","Pimpinella mulanjensis C.C.Towns.","sp","herb","LC",null,"1850-2300","O",{"$nulls":3},1,{"$nulls":4},1]
["Apocynaceae","Ceropegia nutans (Bruyns) Bruyns","sp","herb","VU D1+2",null,"1400-1500","O",{"$nulls":8},1]
["Apocynaceae","Cynanchum oresbium (Bruyns) Goyder","sp","succ","VU D2",null,"700-900","O",{"$nulls":12},1,{"$nulls":5},1]
["Apocynaceae","Schizoglossum barbatum Britten & Rendle","sp","herb",null,null,2000,"O",{"$nulls":3},1]
["Apocynaceae","Secamone stuhlmannii K.Schum.","subsp","cl",null,"T","1200-1800","O",null,null,1]
["Asphodelaceae","Aloe chabaudii Schönland var. mlanjeana Christian","var","succ",null,null,"900-1525","O",{"$nulls":3},1,{"$nulls":14},1]
["Asphodelaceae","Aloe rulkensii T.A.McCoy & O.J.Baptista","sp","succ","CR B1ab(iii)+2ab(iii); D",null,1700,"O",{"$nulls":12},1]
["Asphodelaceae","Aloe torrei I.Verd.& Christian","sp","succ","DD",null,"1500-1600","O",{"$nulls":8},1]
["Asphodelaceae","Kniphofia mulanjeana S.Blackmore","sp","herb",null,null,"2700-3000","O",{"$nulls":3},1]
["Asteraceae","Afroaster milanjiensis (S.Moore) J.C.Manning & Goldblatt (=Vernonia milanjiana)","sp","herb",null,null,"1900-2200","O",{"$nulls":3},1]
["Asteraceae","Berkheya johnstoniana Britten","sp","herb",null,null,"1950-2100","O",{"$nulls":3},1]
["Asteraceae","Bothriocline milanjiensis (S.Moore) Wild & G.V.Pope","sp","herb",null,null,"1800-2400","O",{"$nulls":3},1]
["Asteraceae","Bothriocline moramballae (Oliv.& Hiern) O.Hoffm.","sp","herb","LC","","900-1750","C/F",{"$nulls":8},1,{"$nulls":3},1,1,{"$nulls":3},1]
["Asteraceae","Helichrysum bullulatum S.Moore","sp","sshr",null,null,"1800-2000","O",{"$nulls":3},1]
["Asteraceae","Helichrysum dilucidum S.Moore","sp","herb",null,null,"1800-2150","C/F",{"$nulls":3},1]
["Asteraceae","Helichrysum lastii Engl.","sp","sshr","LC",null,"1500-2200","O",null,null,1,1,{"$nulls":4},1]
["Asteraceae","Helichrysum polioides B.L.Burtt","sp","herb",null,null,"1900-2100","O",{"$nulls":3},1]
["Asteraceae","Helichrysum whyteanum Britten ","sp","sshr",null,null,"1850-2200","O",{"$nulls":3},1]
["Asteraceae","Lopholaena whyteana (Britten) E.Phillips & C.A.Sm.","sp","herb",null,null,2100,"O",{"$nulls":3},1]
["Asteraceae","Senecio peltophorus Brenan","sp","herb","LC",null,"1600-2100","O",{"$nulls":3},1,{"$nulls":3},1,1]
["Balsaminaceae","Impatiens quisqualis Launert","sp","herb",null,null,1800,"C/F",{"$nulls":3},1]
["Balsaminaceae","Impatiens shirensis Baker f.","sp","shr",null,null,2100,"C/F",{"$nulls":3},1]
["Begoniaceae","Begonia brevibracteata Kupicha","sp","herb",null,null,"850-1750","C/F",null,null,1,1]
["Begoniaceae","Begonia nyassensis Irmsch.","sp","herb",null,null,"1830-2000","O",null,null,1,1]
["Buxaceae","Buxus nyasica Hutch.","sp","shr","EN B1ab(ii,iii,iv)+2ab(ii,iii,iv)",null,"1200-1500","C/F",{"$nulls":3},1,null,1]
["Campanulaceae","Cyphia brummittii Thulin","sp","herb",null,null,"1950-2300","O",{"$nulls":3},1]
["Campanulaceae","Cyphia decora Thulin","sp","herb",null,null,"1800-2000","O",{"$nulls":3},1]
["Campanulaceae","Lobelia blantyrensis E.Wimm.","sp","herb",null,null,"1800-2300","O",null,null,1,1,null,1,null,null,1]
["Cleomaceae","Sieruela densifolia (C.H.Wright) Roalson & J.C.Hall (=Cleome densifolia)","sp","herb",null,null,"1800-2050","O",{"$nulls":3},1]
["Commelinaceae","Cyanotis namuliensis Faden INED.","sp","epi","LC",null,"1800-2000","O",{"$nulls":8},1]
["Crassulaceae","Crassula morrumbalensis R.Fern.","sp","suc","CR B1ab(iii)","T",1000,"O",{"$nulls":17},1]
["Crassulaceae","Crassula zombensis Baker f.","sp","suc","LC",null,"1200-1900","O",null,null,1,{"$nulls":5},1]
["Cuppresaceae","Widdringtonia whytei Rendle","sp","tree","CR A2acde; C1; D",null,"1800-2550","C/F",{"$nulls":3},1]
["Ericaceae","Erica austronyassana Alm & T.C.E.Fr.","sp","sshr",null,null,"2000-3000","O",{"$nulls":3},1]
["Ericaceae","Erica milanjiana Bolus","sp","sshr",null,null,"1800-2400","O",{"$nulls":3},1]
["Ericaceae","Erica nyassana (Alm & T.C.E.Fr.) E.G.H.Oliv.","sp","sshr","EN B1ab(iii,iv,v)+2ab(iii,iv,v)",null,"1800-2150","O",{"$nulls":3},1]
["Eriocaulaceae","Eriocaulon mulanjeanum S.M.Phillips","sp","herb",null,null,"1600-1800","O",null,null,1,1,{"$nulls":4},1,1]
["Euphorbiaceae","Euphorbia decliviticola L.C.Leach","sp","succ","LC",null,"650-1350","O",{"$nulls":5},"1?",null,null,1,null,null,1,1]
["Euphorbiaceae","Euphorbia mlanjeana L.C.Leach","sp","succ",null,null,"1000-1800","O",1,null,null,1,{"$nulls":4},1,{"$nulls":3},1,{"$nulls":3},1]
["Euphorbiaceae","Euphorbia namuliensis Bruyns","sp","succ","LC","T","800-1200","O",{"$nulls":8},1]
["Euphorbiaceae","Euphorbia whyteana Baker f.","sp","succ",null,null,"1800-2100","O",{"$nulls":3},1]
["Fabaceae","Crotalaria namuliensis Polhill & T.Harris","sp","herb","LC",null,"1800-1950","O",{"$nulls":8},1]
["Fabaceae","Crotalaria torrei Polhill","sp","shr","LC",null,"1700-1900","O",{"$nulls":8},1]
["Fabaceae","Indigofera namuliensis Schrire","sp","herb","DD","T",1400,"O",{"$nulls":8},1]
["Fabaceae","Rhynchosia clivorum S.Moore subsp. gurueensis Verdc.","subsp","shr","DD","T",1900,"O",{"$nulls":8},1]
["Fabaceae","Rhynchosia torrei Verdc.","sp","sshr","LC",null,"1300-2100","O",{"$nulls":8},1]
["Fabaceae","Tephrosia whyteana Baker f. subsp. gemina Brummitt","subsp","shr","CR B1ab(iii)+2ab(iii)",null,1500,"O",{"$nulls":8},1]
["Fabaceae","Tephrosia whyteana Baker f. subsp. whyteana","sp/subsp","shr","EN B1ab+B2ab",null,"1350-2000","O",{"$nulls":3},1]
["Geraniaceae","Geranium mlanjense J.R.Laundon","sp","herb",null,null,"1830-2200","O",{"$nulls":3},1]
["Geraniaceae","Geranium vagans Baker subsp. whytei (Baker) J.R.Laundon","subsp","herb",null,null,"1500-1700","O",null,null,1]
["Gesneriaceae","Streptocarpus dolichanthus Hilliard & B.L.Burtt","sp","epi",null,null,"1200-1800","C/F",{"$nulls":3},1]
["Gesneriaceae","Streptocarpus hirtinervis C.B.Clarke","sp","epi",null,null,"1600-2200","C/F",null,null,1,1,null,1,null,null,1]
["Gesneriaceae","Streptocarpus leptopus Hilliard & B.L.Burtt","sp","epi","EN B2ab(iii)",null,"900-1550","C/F",{"$nulls":3},1,{"$nulls":10},1]
["Gesneriaceae","Streptocarpus milanjianus Hilliard & B.L.Burtt","sp","epi","VU D2",null,"1700-1950","C/F",{"$nulls":3},1,{"$nulls":3},1]
["Gesneriaceae","Streptocarpus myoporoides Hilliard & B.L.Burtt","sp","epi","EN B1ab(iii)+2ab(iii)","","900-1500","C/F",{"$nulls":12},1,1]
["Gesneriaceae","Streptocarpus nimbicola Hilliard & B.L.Burtt","sp","epi",null,null,"1500-2150","O",{"$nulls":3},1]
["Iridaceae","Gladiolus bellus C.H.Wright","sp","geo","DD",null,"1300-2200","O",{"$nulls":3},1]
["Lamiaceae","Clinopodium vernayanum (Brenan) Ryding","sp","herb",null,null,"1800-2200","O",{"$nulls":3},1]
["Lamiaceae","Coleus crassus (N.E.Br.) Culham","sp","shr",null,null,"1600-2200","O",{"$nulls":3},1]
["Lamiaceae","Coleus cucullatus (A.J.Paton) A.J.Paton (=Plectranthus cucullatus)","sp","shr","VU D2",null,"900-1150","O",{"$nulls":12},1]
["Lamiaceae","Coleus namuliensis E.Downes & I.Darbysh.","sp","herb","LC",null,"2000-2100","O",{"$nulls":8},1]
["Lamiaceae","Coleus zombensis (Baker) Mwany.","sp","sshr",null,null,"1000-2100","O",null,null,1,1]
["Lamiaceae","Equilabium dissectum (Brenan) Mwany.& A.J.Paton (=Plectranthus dissectus)","sp","herb",null,null,"1800-2200","O",null,null,1,1]
["Lamiaceae","Plectranthus elegans Britten","sp","shr",null,null,"1500-2000","C/F",null,null,1,1]
["Lamiaceae","Plectranthus guruensis A.J.Paton","sp","herb","EN B1ab(iii)+2ab(iii)",null,"1000-1500","C/F",{"$nulls":8},1]
["Lamiaceae","Plectranthus mandalensis Baker","sp","herb","VU B1ab(iii)+2ab(iii)",null,"1100-2200","C/F",{"$nulls":3},1,{"$nulls":4},1,{"$nulls":3},1]
["Lamiaceae","Stachys didymantha Brenan","sp","herb",null,null,"1800-2000","O",{"$nulls":3},1,{"$nulls":4},1]
["Linderniaceae","Crepidorhopalon namuliensis I.Darbysh.& Eb.Fisch.","sp","herb","LC",null,"1730-1870","O",{"$nulls":8},1]
["Loranthaceae","Agelanthus patelii Polhill & Timberlake","sp","para","EN B1ab(iii)+2ab(iii)",null,"1480-1720","C/F",{"$nulls":3},1,{"$nulls":4},1]
["Loranthaceae","Helixanthera schizocalyx T.Harris, I.Darbysh.& Polhill","sp","para","EN B1ab(iii)+2ab(iii)",null,1650,"C/F",{"$nulls":7},1,1]
["Malvaceae        ","Dombeya lastii K.Schum.","sp","shr","EN B1ab(iii)+2ab(iii)","","1050-1250","W",{"$nulls":8},1]
["Malvaceae        ","Dombeya leachii Wild","sp","shr","EN B1ab(iii)+2ab(iii)","","550-1400","W",{"$nulls":12},1]
["Melastomataceae","Dissotis johnstoniana Baker f. vars. johnstoniana & strigosa Brenan","sp(+var)","shr",null,null,"1800-2200","O",{"$nulls":3},1,{"$nulls":4},1]
["Melastomataceae","Memecylon nubigenum R.D.Stone & I.G.Mona","sp","tree","EN B1ab(iii)+B2ab(iii)",null,"1600-1700","C/F",{"$nulls":3},1,{"$nulls":4},1,{"$nulls":3},1]
["Orchidaceae","Brownleea mulanjiensis H.P.Linder","sp","geo",null,null,"2200-2400","O",{"$nulls":3},1]
["Orchidaceae","Cynorkis brevicalcar P.J.Cribb","sp","geo","DD",null,"1700-2300","O",{"$nulls":3},1]
["Orchidaceae","Cynorkis buchananii Rolfe","sp","geo",null,null,"1200-2000","O",null,null,1,1]
["Orchidaceae","Holothrix johnstonii Rolfe","sp","geo","DD",null,"1300-2300","O",null,null,1,1,null,1]
["Orchidaceae","Polystachya johnstonii Rolfe vars. johnstonii + roseopurpurea la Croix & P.J.Cribb","sp(+var)","epi",null,null,"1350-2300","O",null,null,1,1,null,1,null,null,1]
["Orchidaceae","Polystachya lawrenceana Kraenzl.","sp","epi",null,null,"1350-1800","O",null,null,1,1]
["Orchidaceae","Polystachya purpureobracteata P.J.Cribb & la Croix","sp","epi",null,null,"1200-1550","C/F",{"$nulls":3},1]
["Orchidaceae","Polystachya songaniensis G.Will.","sp","epi",null,null,"1400-2400","O",null,null,1,1,{"$nulls":3},1]
["Orchidaceae","Satyrium afromontanum la Croix & P.J.Cribb","sp","geo",null,null,"2100-2400","O",{"$nulls":3},1]
["Orobanchaceae","Buchnera namuliensis Skan","sp","herb","DD",null,1800,"O",{"$nulls":8},1]
["Peraceae","Clutia brassii Brenan","sp","shr",null,null,"1800-2100","O",{"$nulls":3},1]
["Peraceae","Clutia conferta Hutch.","sp","shr",null,null,"2100-2600","O",{"$nulls":3},1]
["Phyllanthaceae","Phyllanthus confusus Brenan","sp","shr",null,null,"1700-2300","O",{"$nulls":3},1]
["Poaceae","Alloeochaete geniculata Kabuye","sp","gram",null,null,2000,"O",{"$nulls":3},1]
["Poaceae","Alloeochaete gracillima Kabuye","sp","gram",null,null,2200,"O",{"$nulls":3},1]
["Poaceae","Alloeochaete namuliensis Chippind.","sp","gram","VU D2",null,1500,"O",{"$nulls":8},1]
["Poaceae","Alloeochaete oreogena Launert","sp","gram",null,null,"1800-2100","O",{"$nulls":3},1]
["Poaceae","Baptorhachis foliacea (Clayton) Clayton","sp","gram","DD","T",900,"O",{"$nulls":12},1]
["Poaceae","Digitaria appropinquata Goetgh.","sp","gram","DD","T",1500,"O",{"$nulls":8},1]
["Poaceae","Digitaria trinervis Van der Veken","sp","gram",null,null,"1200-1950","O",{"$nulls":3},1]
["Poaceae","Eragrostis fastigiata Cope","sp","gram",null,null,"2000-2150","O",{"$nulls":3},1]
["Poaceae","Eragrostis sylviae Cope","sp","gram",null,"T",2100,"O",{"$nulls":3},1]
["Poaceae","Panicum nymphoides Renvoize","sp","gram","DD",null,2100,"O",{"$nulls":3},1]
["Podostemaceae","Inversodicraea torrei (C.Cusset) Cheek (=Ledermannielaa torrei)","sp","herb","VU D2",null,2000,"Aq",{"$nulls":8},1]
["Polygalaceae","Polygala adamsonii Exell","sp","herb","LC",null,"1300-2300","O",{"$nulls":3},1,{"$nulls":4},1,{"$nulls":3},1]
["Primulaceae","Lysimachia oligantha (P.Taylor) U.Manns & Anderb. (=Anagallis oligantha)","sp","herb","VU D2",null,"1800-2000","O",{"$nulls":3},1]
["Proteaceae","Faurea racemosa Farmar","sp","tree","EN B2ab(iii,v)",null,"1370-2200","C/F",null,null,1,1,{"$nulls":3},1,1]
["Proteaceae","Protea caffra Meisn. subsp. nyasae (Rendle) Chisumpa & Brummitt","shr","shr",null,null,"1800-2450","O",{"$nulls":3},1]
["Restionaceae","Platycaulos mlanjiensis (H.P.Linder) H.P.Linder & C.R.Hardy (=Restio)","sp","gram",null,null,"1700-2200","O",{"$nulls":3},1]
["Rubiaceae","Oldenlandia verrucitesta Verdc.","sp","herb",null,"T",800,"O",{"$nulls":15},1]
["Rubiaceae","Pavetta chapmanii Bridson","sp","shr","VU B1ab(iii)",null,"950-2100","C/F",null,null,1,1,null,null,1,null,1,{"$nulls":5},1]
["Rubiaceae","Pavetta gurueensis Bridson","sp","shr","VU D2",null,"1000-1400","C/F",{"$nulls":7},1,1]
["Rubiaceae","Pentas zanzibarica (Klotzsch) Vatke subsp. milangiana (Verdc.) Verdc.","subsp","herb","LC",null,"750-2300","C/F",{"$nulls":3},1,null,1,null,1,1,{"$nulls":3},1,null,1]
["Rubiaceae","Polysphaeria harrisii I.Darbysh.& C.Langa","sp","shr","EN B1ab(iii)+2ab(iii)",null,"900-1600","C/F",{"$nulls":7},1,{"$nulls":7},1]
["Rubiaceae","Polysphaeria ribauensis I.Darbysh.& C.Langa","sp","shr","EN B1ab(iii)+2ab(iii)",null,"1100-1400","C/F",{"$nulls":12},1]
["Rubiaceae","Pyrostria chapmanii Bridson","sp","tree","EN B1ab(iii)+2ab(iii)",null,"900-2000","C/F",{"$nulls":3},1,{"$nulls":4},1,{"$nulls":3},1]
["Rutaceae","Vepris elegantissima F.White & Pannell","sp","tree","CR B1ab(iii)+2ab(iii)",null,"900-1000","C/F",{"$nulls":3},1]
["Rutaceae","Vepris macedoi (Exell & Mendonça) Mziray\n","sp","shr","EN B1ab(iii)+2ab(iii)",null,"1050-1200","C/F",{"$nulls":12},1,1]
["Rutaceae","Vepris sp. nov. \"mabuensis\" INED.\n","sp","shr","LC",null,"950-1600","C/F",{"$nulls":7},1]
["Sapindaceae","Deinbollia nyasica Exell","sp","tree","CR B1ab(ii,iii,v)c(ii)+2ab(ii,iii,v)c(ii)","T","850-1000","C/F",{"$nulls":4},1]
["Sapotaceae","Synsepalum muelleri (Kupicha) T.D.Penn.","sp","tree","LC",null,"900-1900","C/F",{"$nulls":3},1,null,null,1,1,1,{"$nulls":3},1]
["Thymelaeaceae","Gnidia chapmanii B.Peterson","sp","shr","LC",null,"1250-2100","O",{"$nulls":3},1,{"$nulls":4},1]
["Velloziaceae","Xerophyta splendens (Rendle) N.L.Menezes","sp","sshr","LC",null,"1650-2400","O",{"$nulls":3},1,{"$nulls":4},1]
["Vitaceae","Cissus aristolochiifolia Planch.","sp","cl","VU B1ab(iii)+2ab(iii)",null,"1000-1850","W",null,null,1,1,null,1,null,null,1,null,1,null,1]
["Xyridaceae","Xyris makuensis N.E.Br.","sp","herb","LC",null,"1600-2300","O",{"$nulls":3},1,{"$nulls":4},1]
["Zamiaceae","Encephalartos gratus Prain","sp","tree","VU A4cd",null,"650-900","O",null,null,1,1,{"$nulls":4},1,{"$nulls":5},1,null,null,1]
[]
[null,"Life forms:",{"$nulls":6},{"$f":"SUM(I2:I128)","v":2},{"$f":"SUM(J2:J128)","v":0},23,85,1,8,2,11,50,1,1,1,19,3,4,2,1,3,2]
[null,"tree = tree","Total: 127 CoE endemics"]
[null,"shr = shrub (multistemmed)"]
[null,"sshr - sub-shrub (<1 m high)"]
[null,"cl = climber or liana"]
[null,"herb = herb (incl. grass)"]
[null,"gram = graminoid, grass, sedge"]
[null,"epi = epiphyte or lithophyte"]
[null,"geo = geophyte (with large underground storage organ)"]
[null,"succ = succulent"]
[null,"para = parasite"]
[]
[null,"Habitats:"]
[null,"C/F - Closed (principally forests, forest margins)"]
[null,"O - Open (principally montane grassland, rocks/cliffs, shrubland) "]
[null,"W - Woodland (also links to miombo)"]
[null,"Aq - Aquatic"]

{"sheet":"Mammals","index":1,"n_rows":7,"n_cols":27,"rows_kept":7}
["Order","Family","Taxon","End. rank","IUCN status","Type only ","alt.","Habitat","Mangochi","Liwonde","Zomba-Malosa","Mulanje + Mchese","Thyolo Mt","Mts Soche, Ndirande, Chiradzulu","Chiperone","Mabu","Namuli","Pico Muli","Lico","Inago","Ribáuѐ & Mpaluwe","Nallume (Chinga)","Tumbine (Milange)","Mt Ile (Errego)","Mitucue","Morrumbala","OTHER"]
["Chiroptera","Rhinolophidae","Rhinolophus mabuensis","sp","Endangered B2ab(iii)",null,null,"F",{"$nulls":7},1,{"$nulls":3},1]
["Rodentia","Sciuridae","Paraxerus vincenti","sp","Endangered B1ab(iii,v)",null,null,"F",{"$nulls":8},1]
["Rodentia","Muridae","Grammomys selousi \"lineage se2\"","sp","DD",null,null,"F/W",{"$nulls":10},1]
["Eulipotyphla","Soricidae","Crocidura olivieri clade VIII  ","sp","DD",{"$nulls":10},1,null,1,1]
[]
[{"$nulls":8},{"$f":"SUM(I2:I6)","v":0},{"$f":"SUM(J2:J6)","v":0},0,0,0,0,0,2,1,1,2,1,0,0,0,0,0,0,0]

{"sheet":"Birds","index":2,"n_rows":11,"n_cols":27,"rows_kept":11}
["Order","Family","Taxon","End. rank","IUCN status","Type only ","alt.","Habitat","Mangochi","Liwonde","Zomba-Malosa","Mulanje + Mchese","Thyolo Mt","Mts Soche, Ndirande, Chiradzulu","Chiperone","Mabu","Namuli","Pico Muli","Lico","Inago","Ribáuѐ & Mpaluwe","Nallume (Chinga)","Tumbine (Milange)","Mt Ile (Errego)","Mitucue","Morrumbala","OTHER"]
["Piciformes","Ramphastidae","Cryptolybia olivacea belcheri  (Green Barbet)",null,"Least Concern",null,null,"F",{"$nulls":4},"Extinct",null,null,1,1]
["Passeriformes","Cisticolidae","Apalis (thoracica) flavigularis (Yellow-throated Apalis)",null,"Endangered B1ab(i,ii,iii,v)",null,null,"F",null,null,1,1]
["Passeriformes","Cisticolidae","Apalis (thoracica) lynesi (Namuli Apalis)",null,"Endangered B1ab(ii,iii,iv,v)",null,null,"F",{"$nulls":7},1,1]
["Passeriformes","Cisticolidae","Apalis melanocephala adjacens (Black-headed Apalis)",null,"Least Concern",null,null,"F",1,1,1,null,null,"Extinct"]
["Passeriformes","Cisticolidae","Apalis melanocephala fuliginosa (Black-headed Apalis)",null,"Least Concern",null,null,"F",{"$nulls":3},1,"Extinct"]
["Passeriformes","Muscicapidae","Chamaetylas choloensis (Cholo Alethe)",null,"Vulnerable B2ab(i,ii,iii,iv,v)",null,null,"F","Extinct",1,1,1,"Extinct","Extinct",1,1,1,null,null,1]
["Passeriformes","Muscicapidae","Cossypha anomala anomala (Olive-flanked Robin-chat)",null,"Least Concern",null,null,"F",{"$nulls":3},1,{"$nulls":4},1]
["Passeriformes","Turdidae","Geokichla guttata belcheri (Spotted Ground Thrush)",null,"Vulnerable C2a(i)",null,null,"F",{"$nulls":3},1,"Extinct","Extinct",null,1,1]
[]
[{"$nulls":8},{"$f":"SUM(I2:I9)","v":1},{"$f":"SUM(J2:J9)","v":2},3,5,0,0,1,4,5,0,0,1,0,0,0,0,0,0,0]

{"sheet":"Reptiles","index":3,"n_rows":25,"n_cols":27,"rows_kept":25}
["Order","Family","Taxon","End. rank","IUCN status","Type only ","Elevation","Habitat","Mangochi","Liwonde","Zomba-Malosa","Mulanje + Mchese","Thyolo Mt","Mts Soche, Ndirande, Chiradzulu","Chiperone","Mabu","Namuli","Pico Muli","Lico","Inago","Ribáuѐ & Mpaluwe","Nallume (Chinga)","Tumbine (Milange)","Mt Ile (Errego)","Mitucue","Morrumbala","OTHER"]
["Squamata","Viperidae","Atheris mabuensis","sp","Endangered B1ab(iii)+2ab(iii)",null,"990-1600","F",{"$nulls":7},1,1]
["Squamata","Colubridae","Dipsadoboa flavida flavida","subsp","NA",null,"800-1000 (estimated)","W/O",{"$nulls":3},1]
["Squamata","Colubridae","Dipsadoboa montisilva","sp","Near Threatened B1b(iii)+2b(iii)",null,"920-1645","F",{"$nulls":7},1,{"$nulls":4},1]
["Squamata","Gekkonidae","Lygodactylus aff. rex","sp","NA",null,"900-1800","F/O",{"$nulls":6},1,1,null,null,1,1]
["Squamata","Gekkonidae","Lygodactylus rex","sp","Near Threatened B1b(iii)",null,"825-1860","F/W/O",{"$nulls":3},1]
["Squamata","Gekkonidae","Lygodactylus bonsi","sp","Least Concern",null,"2030-2955","O",{"$nulls":3},1]
["Squamata","Gekkonidae","Lygodactylus regulus","sp","Near Threatened B1b(iii)+2b(iii)",null,"1295-2000","W/O",{"$nulls":8},1]
["Squamata","Gekkonidae","Lygodactylus aff. angularis","sp","NA",null,"1055-1140","W/O",{"$nulls":12},1]
["Squamata","Scincidae","Melanoseps aff. ater","sp","NA",null,"530-2000","F",{"$nulls":6},1,1,1,1,null,1,1]
["Squamata","Chamaeleonidae","Nadzikambia baylissi","sp","Near Threatened B1b(i,iii); D2",null,"920-970","F",{"$nulls":7},1]
["Squamata","Chamaeleonidae","Nadzikambia mlanjensis","sp","Endangered B1ab(i,ii,iii,v)+2ab(i,ii,iii,v)",null,"630-1880","F",{"$nulls":3},1]
["Squamata","Chamaeleonidae","Nadzikambia aff. baylissi","sp","NA",null,"1020-1385","F",{"$nulls":6},1,null,1,null,null,1,1]
["Squamata","Cordylidae","Platysaurus mitchelli","sp","Least Concern",null,"900-1950","W/O",{"$nulls":3},1]
["Squamata","Scincidae","Panaspis aff. wahlbergi","sp","NA",null,"840-1700","O",{"$nulls":3},1]
["Squamata","Scincidae","Proscelotes mlanjensis","sp","Not accepted as valid species at present. Not on IUCN",null,"1860-2070","W/O",{"$nulls":3},1]
["Squamata","Chamaeleonidae","Rhampholeon bruessoworum ","sp","Critically Endangered B1ab(i,ii,iii)",null,"787-1348","F",{"$nulls":11},1]
["Squamata","Chamaeleonidae","Rhampholeon chapmanorum","sp","Critically Endangered B1ab(i,ii,iii,iv,v)",null,"940- 1065","F"]
["Squamata","Chamaeleonidae","Rhampholeon maspictus","sp","Near Threatened B1b(i,iii); D2",null,"920-1645","F",{"$nulls":7},1]
["Squamata","Chamaeleonidae","Rhampholeon nebulauctor","sp","Vulnerable D2",null,"1020-1290","F",{"$nulls":6},1]
["Squamata","Chamaeleonidae","Rhampholeon platyceps","sp","Endangered B1ab(ii,iii,v)+2ab(ii,iii,v)",null,"1600-2225","F",{"$nulls":3},1]
["Squamata","Chamaeleonidae","Rhampholeon aff. tilburyi","sp","NA",null,"1610-1840","F",{"$nulls":8},1]
["Squamata","Chamaeleonidae","Rhampholeon tilburyi","sp","Endangered B1ab(i,ii,iii)+2ab(i,ii,iii)",null,"560-1620","F",{"$nulls":7},1,1,1,null,null,1,1]
[]
[{"$nulls":8},{"$f":"SUM(I2:I24)","v":0},0,0,8,0,0,4,7,6,2,1,4,5,1,0,0,0,0]

{"sheet":"Amphibians","index":4,"n_rows":14,"n_cols":27,"rows_kept":14}
["Order","Family","Taxon","End. rank","IUCN status","Type only ","Elevation","Habitat","Mangochi","Liwonde","Zomba-Malosa","Mulanje + Mchese","Thyolo Mt","Mts Soche, Ndirande, Chiradzulu","Chiperone","Mabu","Namuli","Pico Muli","Lico","Inago","Ribáuѐ & Mpaluwe","Nallume (Chinga)","Tumbine (Milange)","Mt Ile (Errego)","Mitucue","Morrumbala","OTHER"]
["Anura","Pyxicephalidae","Amietia johnstoni","sp","Endangered B1ab(iii)",null,"1850-2090","O/Aq",{"$nulls":3},1]
["Anura","Arthroleptidae ","Arthroleptis francei","sp","Vulnerable B1ab(iii)",null,"430-1890","F/O",null,null,"?",1]
["Anura","Arthroleptidae ","Arthroleptis cf. francei","sp","NA",null,"850-1060","F",{"$nulls":6},1,1,1,1,1,1,1]
["Anura","Brevicipitidae","Breviceps aff. mossambicus","sp","NA",null,"1240-1550","F",{"$nulls":8},1,1,null,1]
["Anura","Hyperoliidae","Hyperolius spinigularis","sp","Vulnerable B1ab(iii)",null,"800-1600","F/W",{"$nulls":3},1,{"$nulls":4},1]
["Anura","Pyxicephalidae","Nothophryne baylissi","sp","Endangered B1ab(i,iii)",null,"1110-1700","O",{"$nulls":8},1]
["Anura","Pyxicephalidae","Nothophryne broadleyi","sp","Endangered B1ab(iii)",null,"900-2000","O",{"$nulls":3},1]
["Anura","Pyxicephalidae","Nothophryne aff. baylissi","sp","NA",null,"640-740","O/W",{"$nulls":10},1]
["Anura","Pyxicephalidae","Nothophryne inagoensis","sp","Endangered B1ab(i,iii)",null,"1250-1310","O",{"$nulls":11},1]
["Anura","Pyxicephalidae","Nothophryne ribauensis ","sp","Endangered B1ab(i,iii)",null,"590-1560","O",{"$nulls":12},1]
["Anura","Scolecomorphidae","Scolecomorphus aff. kirkii ","sp","NA",null,"920-1160","F",{"$nulls":6},1,1,1,1,null,1,1]
[]
[{"$nulls":8},{"$f":"SUM(I2:I13)","v":0},{"$f":"SUM(J2:J13)","v":0},0,4,0,0,2,2,{"$f":"SUM(Q2:Q13)","v":5},3,2,4,3,0,0,0,0,0]

{"sheet":"Crabs","index":5,"n_rows":10,"n_cols":27,"rows_kept":10}
["Order","Family","Taxon","End. rank","IUCN status","Type only ","alt.","Habitat","Mangochi","Liwonde","Zomba-Malosa","Mulanje + Mchese","Thyolo Mt","Mts Soche, Ndirande, Chiradzulu","Chiperone","Mabu","Namuli","Pico Muli","Lico","Inago","Ribáuѐ & Mpaluwe","Nallume (Chinga)","Tumbine (Milange)","Mt Ile (Errego)","Mitucue","Morrumbala","OTHER"]
["Decapoda","Potamonautidae","Maritonautes namuliensis","sp","DD",{"$nulls":11},1]
["Decapoda","Potamonautidae","Potamonautes mulanjeensis","sp","DD",{"$nulls":6},1]
["Decapoda","Potamonautidae","Maritonautes licoensis","sp","DD",{"$nulls":13},1]
["Decapoda","Potamonautidae","Maritonautes choloensis ","sp","Least Concern",{"$nulls":7},1]
["Decapoda","Potamonautidae","Arcopotamonautes sp no 1 (Mangochi)","sp","DD",{"$nulls":3},1]
["Decapoda","Potamonautidae","Arcopotamonautes sp nov 2 (Chiperone)","sp","DD",{"$nulls":9},1]
[]
[]
[{"$nulls":8},{"$f":"SUM(I2:I9)","v":1},{"$f":"SUM(J2:J9)","v":0},0,1,1,0,1,0,1,0,1,0,0,0,0,0,0,0,0]

{"sheet":"Butterflies","index":6,"n_rows":42,"n_cols":27,"rows_kept":42}
["Order","Family","Taxon","End. rank","IUCN status","Type only ","alt.","Habitat","Mangochi","Liwonde","Zomba-Malosa","Mulanje + Mchese","Thyolo Mt","Mts Soche, Ndirande, Chiradzulu","Chiperone","Mabu","Namuli","Pico Muli","Lico","Inago","Ribáuѐ & Mpaluwe","Nallume (Chinga)","Tumbine (Milange)","Mt Ile (Errego)","Mitucue","Morrumbala","OTHER"]
["Lepidoptera","Lycaenidae","Alaena lamborni","sp","Vulnerable B1ab (iii)+2ab(iii)",null,null,"W",{"$nulls":3},1,null,1,null,null,1,null,null,1]
["Lepidoptera","Lycaenidae","Alaena ochracea","sp",{"$nulls":3},"W",null,null,1]
["Lepidoptera","Lycaenidae","Baliochila nyasae","sp",{"$nulls":3},"W",{"$nulls":3},1,{"$nulls":4},1]
["Lepidoptera","Lycaenidae","Cooksonia aliciae","sp",{"$nulls":3},"W",1]
["Lepidoptera","Lycaenidae","Lepidochrysops delicata","sp","Endangered B1ab(i,ii,iii,v)+2ab(i,ii,iii,v)",null,null,"W/O",null,null,1,1]
["Lepidoptera","Lycaenidae","Lepidochrysops neavei","sp",{"$nulls":3},"W/O",null,null,1,1]
["Lepidoptera","Lycaenidae","Leptomyrina congdoni","sp",{"$nulls":3},"O",{"$nulls":7},1,1,null,null,1]
["Lepidoptera","Lycaenidae","Uranothauma (namuli)","sp",{"$nulls":3},"W/O",{"$nulls":8},1]
["Lepidoptera","Lycaenidae","Uranothauma confusum","sp",{"$nulls":3},"W/O",null,null,1,1]
["Lepidoptera","Riodinidae","Afriodinia lico","sp",{"$nulls":3},"F",{"$nulls":10},1]
["Lepidoptera","Lycaenidae","Axiocerses bamptoni","sp",{"$nulls":3},"F",{"$nulls":3},1,{"$nulls":3},1,1]
["Lepidoptera","Lycaenidae","Baliochila sp. (Mabu)","sp",{"$nulls":3},"F",{"$nulls":7},1]
["Lepidoptera","Lycaenidae","Baliochila sp. (Mangochi)","sp",{"$nulls":3},"F",1]
["Lepidoptera","Lycaenidae","Baliochila woodi","sp","Vulnerable B2ab(iii)",null,null,"F",{"$nulls":3},1]
["Lepidoptera","Nymphalidae","Charaxes margaretae","sp",{"$nulls":3},"F",{"$nulls":3},1,{"$nulls":3},1,1,null,null,1]
["Lepidoptera","Nymphalidae","Charaxes martini","sp",{"$nulls":3},"F",null,null,1,1]
["Lepidoptera","Nymphalidae","Cymothoe baylissi ","sp","Endangered B1ab (iii)+2ab(iii)",null,null,"F",{"$nulls":7},1,1,null,null,1]
["Lepidoptera","Nymphalidae","Cymothoe melanjae","sp",{"$nulls":3},"F",{"$nulls":3},1]
["Lepidoptera","Nymphalidae","Cymothoe (mangochi)","sp",{"$nulls":3},"F",1]
["Lepidoptera","Nymphalidae","Cymothoe zombana","sp",{"$nulls":3},"F",null,1,1]
["Lepidoptera","Lycaenidae","Epamera malaikae","sp","Endangered B1ab(iii)",null,null,"F",{"$nulls":7},1,1]
["Lepidoptera","Lycaenidae","Epamera handmani","sp",{"$nulls":3},"F",{"$nulls":5},1]
["Lepidoptera","Lycaenidae","Philiolaus cf stewarti","sp",{"$nulls":3},"F",null,null,1]
["Lepidoptera","Lycaenidae","Philiolaus collinsi","sp",{"$nulls":3},"F",{"$nulls":8},1]
["Lepidoptera","Lycaenidae","Iolaus (mabu)","sp",{"$nulls":3},"F",{"$nulls":7},1]
["Lepidoptera","Nymphalidae","Neptis neavei","sp",{"$nulls":3},"F",{"$nulls":3},1,null,null,1,1,1]
["Lepidoptera","Nymphalidae","Neptis collinsi","sp",{"$nulls":3},"F",{"$nulls":7},1]
["Lepidoptera","Pieridae","Mylothris similis","sp",{"$nulls":3},"F",{"$nulls":3},1,{"$nulls":4},1]
["Lepidoptera","Nymphalidae","Bicyclus (Mabu)","sp",{"$nulls":3},"F",{"$nulls":7},1,1,null,null,1]
["Lepidoptera","Nymphalidae","Acraea cf ansorgi ","sp",{"$nulls":3},"W/O",{"$nulls":5},1]
["Lepidoptera","Pieridae","Mylothris seminigra mangochi","ssp",{"$nulls":3},"F",1]
["Lepidoptera","Nymphalidae","Neocoenyra  bioculata sspnov","ssp",{"$nulls":3},"O",{"$nulls":7},1,1,null,null,1]
["Lepidoptera","Nymphalidae","Charaxes martini helenae","ssp",{"$nulls":3},"F",null,null,1]
["Lepidoptera","Nymphalidae","Cymothoe baylissi monicae","ssp","Endangered B1ab (iii)+2ab(iii)",null,null,"F",{"$nulls":11},1]
["Lepidoptera","Nymphalidae","Cymothoe baylissi poppyana","ssp","Endangered B1ab (iii)+2ab(iii)",null,null,"F",{"$nulls":7},1]
["Lepidoptera","Nymphalidae","Cymothoe coranus sspnov","ssp",{"$nulls":3},"F",{"$nulls":13},1]
["Lepidoptera","Papilionidae","Papilio pelodurus allani","ssp",{"$nulls":3},"F",{"$nulls":7},1]
["Lepidoptera","Nymphalidae","Pseudathyma plutonica sspnov","ssp",{"$nulls":3},"F",{"$nulls":8},1,{"$nulls":4},1]
["Lepidoptera","Hesperiidae","Metisella ssp nov","ssp",{"$nulls":3},"F",{"$nulls":7},1]
[]
[{"$nulls":8},{"$f":"SUM(I2:I41)","v":4},{"$f":"SUM(J2:J41)","v":1},{"$f":"SUM(K2:K41)","v":8},{"$f":"SUM(L2:L41)","v":12},{"$f":"SUM(M2:M41)","v":0},{"$f":"SUM(N2:N41)","v":3},{"$f":"SUM(O2:O41)","v":1},{"$f":"SUM(P2:P41)","v":14},{"$f":"SUM(Q2:Q41)","v":14},{"$f":"SUM(R2:R41)","v":0},{"$f":"SUM(S2:S41)","v":1},{"$f":"SUM(T2:T41)","v":7},{"$f":"SUM(U2:U41)","v":0},{"$f":"SUM(V2:V41)","v":2},{"$f":"SUM(W2:W41)","v":0},{"$f":"SUM(X2:X41)","v":0},{"$f":"SUM(Y2:Y41)","v":0},{"$f":"SUM(Z2:Z41)","v":0},{"$f":"SUM(AA2:AA41)","v":0}]